[Event "Turkish Youth Championships 2023"]
[Site "Samsun"]
[Date "2023.05.22"]
[Round "4.18"]
[White "Zerey, Demhat"]
[Black "Simsek, Ayaz"]
[Result "1-0"]
[ECO "C14"]
[WhiteElo "1710"]
[BlackElo "1474"]
[Annotator "NA COMBH"]
[PlyCount "109"]
[EventDate "2023.05.19"]
[EventType "swiss"]
[EventCountry "TUR"]
[SourceTitle "playchess.com"]
[Source "ChessBase"]
[SourceQuality "1"]
[TimeControl "5400+30"]

1. e4 {[%emt 0:03:00]} e6 {[%emt 0:01:00]} 2. d4 {[%emt 0:00:30]} d5 {[%emt 0:00:30]} 3. Nc3 {[%emt 0:00:30]} Nf6 {[%emt 0:00:30]} 4. Bg5 {[%emt 0:00:30]} Be7 {[%emt 0:00:30]} 5. e5 {[%emt 0:00:30]} Nfd7 {[%emt 0:00:00]} 6. h4 {[%emt 0:00:30]} h6 {[%emt 0:02:00]} 7. Bxe7 {[%emt 0:00:30]} Qxe7 {[%emt 0:00:30]} 8. Qg4 {[%emt 0:00:30]} O-O {[%emt 0:00:30]} 9. f4 {[%emt 0:00:30]} c5 {[%emt 0:00:30]} 10. Nf3 {[%emt 0:00:30]} Nc6 {[%emt 0:00:30]} 11. O-O-O {[%emt 0:00:30]} cxd4 {[%emt 0:04:30]} 12. Nxd4 {[%emt 0:00:30]} Nc5 {[%emt 0:02:30]} 13. Qf3 {[%emt 0:04:30]} f6 {[%emt 0:04:30]} 14. Qe3 {[%emt 0:01:30]} fxe5 {[%emt 0:03:30]} 15. fxe5 {[%emt 0:02:30]} Nd7 {[%emt 0:10:30]} 16. Nxc6 {[%emt 0:05:30]} bxc6 {[%emt 0:00:30]} 17. Bd3 {[%emt 0:01:30]} Qb4 {[%emt 0:04:30]} 18. Rdf1 {[%emt 0:10:30]} Rb8 {[%emt 0:09:30]} 19. b3 {[%emt 0:13:30]} c5 {[%emt 0:24:30]} 20. Nxd5 {[%emt 0:13:30]} exd5 {[%emt 0:01:30]} 21. e6 {[%emt 0:00:30]} Ba6 {[%emt 0:05:30]} 22. exd7 {[%emt 0:02:30]} Bxd3 {[%emt 0:00:30]} 23. Qxd3 {[%emt 0:00:30]} Qb7 {[%emt 0:01:30]} 24. Qh3 {[%emt 0:01:30]} Qa6 {[%emt 0:00:30]} 25. Rxf8+ {[%emt 0:01:30]} Rxf8 {[%emt 0:00:00]} 26. Qf3 {[%emt 0:02:30]} Qd6 {[%emt 0:01:00]} 27. Qg4 {[%emt 0:01:30]} Rd8 {[%emt 0:00:30]} 28. Re1 {[%emt 0:03:30]} Qxd7 {[%emt 0:02:30]} 29. Qh5 {[%emt 0:03:30]} Qd6 {[%emt 0:02:18]} 30. g4 {[%emt 0:03:30]} c4 {[%emt 0:04:04]} 31. g5 {[%emt 0:06:36]} Rf8 {[%emt 0:07:35]} 32. Kb1 {[%emt 0:05:52]} cxb3 {[%emt 0:03:12]} 33. axb3 {[%emt 0:00:14]} Rd8 {[%emt 0:02:22]} 34. gxh6 {[%emt 0:01:59]} Qxh6 {[%emt 0:00:02]} 35. Qxh6 {[%emt 0:01:23]} gxh6 {[%emt 0:00:01]} 36. Re6 {[%emt 0:02:17]} Kg7 {[%emt 0:00:14]} 37. Ra6 {[%emt 0:03:08]} Rd7 {[%emt 0:00:01]} 38. Kc1 {[%emt 0:00:07]} d4 {[%emt 0:01:38]} 39. Kd2 {[%emt 0:00:03]} h5 {[%emt 0:00:01]} 40. Kd3 {[%emt 0:00:17]} Kh7 {[%emt 0:00:56]} 41. Ra4 {[%emt 0:01:49]} Kg6 {[%emt 0:00:47]} 42. Rxd4 {[%emt 0:00:07]} Re7 {[%emt 0:00:18]} 43. Rd5 {[%emt 0:00:57]} Re1 {[%emt 0:00:24]} 44. Rg5+ {[%emt 0:00:13]} Kh6 {[%emt 0:00:30]} 45. Ra5 {[%emt 0:00:04]} Rh1 {[%emt 0:00:38]} 46. Ra6+ {[%emt 0:00:05]} Kg7 {[%emt 0:00:29]} 47. Rxa7+ {[%emt 0:00:30]} Kf6 {[%emt 0:00:30]} 48. Ra4 {[%emt 0:00:00]} Rh3+ {[%emt 0:00:00]} 49. Kd2 {[%emt 0:00:00]} Rh1 {[%emt 0:00:16]} 50. Rc4 {[%emt 0:00:38]} Rh2+ {[%emt 0:00:11]} 51. Kc3 {[%emt 0:00:11]} Rh3+ {[%emt 0:00:30]} 52. Kb4 {[%emt 0:00:00]} Rg3 {[%emt 0:00:00]} 53. Kc5 {[%emt 0:00:02]} Kf5 {[%emt 0:00:14]} 54. b4 {[%emt 0:00:39]} Rg4 {[%emt 0:00:07]} 55. b5 {[%emt 0:00:01]} 1-0

[Event "Turkish Youth Championships 2023"]
[Site "Samsun"]
[Date "2023.05.21"]
[Round "4.19"]
[White "Balci, Ahmet Hakan"]
[Black "Kurtyilmaz, Kuzey"]
[Result "0-1"]
[WhiteElo "1295"]
[BlackElo "1608"]
[Annotator "COMBH"]
[PlyCount "88"]
[EventDate "2023.05.19"]
[EventType "swiss"]
[EventCountry "TUR"]
[TimeControl "5400+30"]
[WhiteClock "0:47:00"]

1. e4 {[%emt 0:01:00]} c6 {[%emt 0:01:00]} 2. d4 {[%emt 0:00:30]} d5 {[%emt 0:00:30]} 3. exd5 {[%emt 0:00:30]} cxd5 {[%emt 0:00:30]} 4. Nf3 {[%emt 0:00:30]} Nf6 {[%emt 0:00:30]} 5. Bd3 {[%emt 0:00:30]} g6 {[%emt 0:00:30]} 6. O-O {[%emt 0:00:30]} Bg7 {[%emt 0:00:30]} 7. Bf4 {[%emt 0:00:30]} O-O {[%emt 0:00:00]} 8. Re1 {[%emt 0:00:30]} Nc6 {[%emt 0:00:00]} 9. c3 {[%emt 0:00:30]} Nh5 {[%emt 0:00:30]} 10. Bg3 {[%emt 0:03:30]} f6 {[%emt 0:00:30]} 11. Qc2 {[%emt 0:00:30]} Nxg3 {[%emt 0:00:30]} 12. hxg3 {[%emt 0:00:30]} e5 {[%emt 0:00:00]} 13. Bb5 {[%emt 0:01:30]} e4 {[%emt 0:01:00]} 14. Nfd2 {[%emt 0:00:30]} f5 {[%emt 0:01:30]} 15. Nb3 {[%emt 0:02:30]} a6 {[%emt 0:01:30]} 16. Bxc6 {[%emt 0:00:30]} bxc6 {[%emt 0:00:00]} 17. Nc5 {[%emt 0:00:30]} f4 {[%emt 0:01:00]} 18. gxf4 {[%emt 0:00:30]} Rxf4 {[%emt 0:00:30]} 19. Nd2 {[%emt 0:00:30]} Qg5 {[%emt 0:08:30]} 20. Nf1 {[%emt 0:04:30]} Bh3 {[%emt 0:07:30]} 21. Ng3 {[%emt 0:00:30]} Raf8 {[%emt 0:14:30]} 22. Rf1 {[%emt 0:01:30]} Bc8 {[%emt 0:12:30]} 23. Rae1 {[%emt 0:10:30]} h5 {[%emt 0:03:30]} 24. Re3 {[%emt 0:06:30]} h4 {[%emt 0:05:30]} 25. Ne2 {[%emt 0:02:30]} Rxf2 {[%emt 0:00:30]} 26. Rxf2 {[%emt 0:01:30]} Qxe3 {[%emt 0:00:30]} 27. Nc1 {[%emt 0:04:30]} Rxf2 {[%emt 0:00:30]} 28. Qxf2 {[%emt 0:00:00]} Qxc1+ {[%emt 0:00:30]} 29. Kh2 {[%emt 0:00:00]} Bh6 {[%emt 0:00:30]} 30. Qxh4 {[%emt 0:01:30]} Qf4+ {[%emt 0:00:00]} 31. Qxf4 {[%emt 0:00:30]} Bxf4+ {[%emt 0:00:00]} 32. Kg1 {[%emt 0:00:00]} Bc1 {[%emt 0:00:30]} 33. b3 {[%emt 0:01:00]} Bd2 {[%emt 0:00:00]} 34. c4 {[%emt 0:00:30]} Be3+ {[%emt 0:00:00]} 35. Kf1 {[%emt 0:00:30]} Bxd4 {[%emt 0:00:30]} 36. Na4 {[%emt 0:01:30]} e3 {[%emt 0:00:00]} 37. Ke1 {[%emt 0:01:30]} Bg4 {[%emt 0:00:00]} 38. g3 {[%emt 0:00:30]} Kf7 {[%emt 0:00:00]} 39. a3 {[%emt 0:01:30]} Kf6 {[%emt 0:00:00]} 40. Kf1 {[%emt 0:00:30]} e2+ {[%emt 0:00:30]} 41. Ke1 {[%emt 0:00:30]} Ke5 {[%emt 0:00:00]} 42. cxd5 {[%emt 0:01:30]} cxd5 {[%emt 0:00:00]} 43. b4 {[%emt 0:00:30]} Ke4 {[%emt 0:00:00]} 44. Kd2 {[%emt 0:04:30]} Ke5 {[%emt 0:00:00]} 0-1

[Event "Turkish Youth Championships 2023"]
[Site "Samsun"]
[Date "2023.05.22"]
[Round "5.2"]
[White "Isilak, Enes"]
[Black "Engin, Onur Cinar"]
[Result "0-1"]
[WhiteElo "2181"]
[BlackElo "1922"]
[Annotator "TA"]
[PlyCount "66"]
[EventDate "2023.05.19"]
[EventType "swiss"]
[EventCountry "TUR"]
[TimeControl "5400+30"]

{[%evp 12,66,15,0,46,42,37,34,31,36,35,37,30,25,31,28,27,33,30,26,101,107,117,120,176,168,287,275,283,276,264,256,244,254,257,243,248,0,0,-210,-208,-199,-203,-238,-112,-120,-121,-316,-14,-29987,-29988,-29987,-29988,-29988,-29989,-29994,-29995]} 1. d4 {[%emt 0:03:00]} d5 {[%emt 0:01:00]} 2. c4 {[%emt 0:00:30]} c6 {[%emt 0:00:00]} 3. Nf3 {[%emt 0:00:00]} Nf6 {[%emt 0:00:00]} 4. Nc3 {[%emt 0:11:00]} dxc4 {[%emt 0:00:30]} 5. a4 {[%emt 0:00:00]} Bf5 {[%emt 0:00:30]} 6. e3 {[%emt 0:00:00]} e6 {[%emt 0:00:00]} 7. a5 {[%emt 0:00:30]} Na6 {[%emt 0:14:00] 7...Nbd7 is a critical line. D18: Slav Defence: 5 a4 Bf5 6 e3.} (7... Bb4 $11 {might be stronger.}) 8. Bxc4 $14 {[%emt 0:03:30]} Nb4 {[%emt 0:00:30]} 9. O-O {[%emt 0:00:30]} Bd6 {[%emt 0:05:30] White is slightly better.} 10. Qe2 {[%emt 0:25:30]} Ne4 {[%emt 0:16:30]} 11. Nd2 {[%emt 0:05:30]} Nxd2 {[%emt 0:06:30]} (11... Qh4 $2 12. g3 Nxc3 13. bxc3 $18) 12. Bxd2 {[%emt 0:00:30][%cal Bc1d2,Bd2e3,Be3f2][%mdl 32] [#]} O-O $146 {[%emt 0:04:30]} (12... Qh4 13. g3 Qe7 14. f3 $16) ({Predecessor:} 12... Bg6 13. Ra4 Bc2 14. b3 O-O 15. e4 b5 16. axb6 axb6 17. Rxa8 Qxa8 18. Na4 b5 19. Bxb4 Bxb4 20. Qxc2 bxa4 21. bxa4 {½-½ Podolchenko,E (2398)-Budkovsky,D (2042) BLR-chT Minsk 2017 (1.2)}) 13. e4 {[%emt 0:06:30][%cal Be3e4,Be4e5][%mdl 32]} Bg6 {[%emt 0:00:30]} 14. Be3 {[%emt 0:00:30]} Qe7 {[%emt 0:08:30]} 15. f4 {[%emt 0:10:30]} c5 {[%emt 0:05:30]} (15... Kh8 $11) 16. e5 $16 {[%emt 0:02:30]} Bc7 {[%emt 0:12:30]} 17. dxc5 {[%emt 0:08:44]} Nc2 {[%emt 0:00:30]} (17... a6 $16) 18. Ra4 $18 {[%emt 0:01:21]} a6 {[%emt 0:03:49]} (18... Nxe3 $142 19. Qxe3 a6) 19. Bf2 {[%emt 0:04:32]} Rad8 {[%emt 0:02:55][%cal Ba8d8,Bd8d2,Bd2c2,Bc2c1,Bc1h1][%mdl 32] Prevents Bd3.} 20. Bb3 {[%emt 0:04:36]} Bd3 {[%emt 0:00:39] [#]} 21. Qf3 {[%emt 0:00:03]} Bxf1 {[%emt 0:01:07]} 22. Kxf1 {[%emt 0:00:05]} Rd2 {[%emt 0:02:11]} 23. Qe4 $1 {[%emt 0:00:44]} (23. Qxb7 $2 Rb8 24. Qxa6 Rxb3 25. Qa8+ Bb8 $19) 23... f6 {[%emt 0:04:20] [#]} 24. Bxc2 $2 {[%emt 0:05:30] This pair of bishops is nice.} (24. exf6 $1 $18 Qxf6 25. Bxc2 Bxf4 26. Qxh7+ Kf7 27. Kg1) 24... f5 $11 {[%emt 0:00:34][%mdl 64] Deflection} 25. Qc4 {[%emt 0:00:05]} (25. Qxb7 $11 {and White is okay.} Rb8 26. Qxa6 Rxc2 27. Be1 Qxc5 28. Qxe6+ Kh8 29. Qa6 (29. Qxf5 $2 Rxc3 {[%mdl 64] Remove Defender} 30. Bxc3 Qb5+ 31. Kf2 Qxa4 $19)) 25... Rxc2 $40 {[%emt 0:01:00][%mdl 128] Black wants a kill.} 26. Qb3 {[%emt 0:04:01]} Rc1+ {[%emt 0:03:05]} 27. Ke2 {[%emt 0:00:27]} Rd8 {[%emt 0:00:44]} (27... Rb8 $19 {and Black stays clearly on top.} 28. Rd4 Qe8) 28. Be3 $17 {[%emt 0:02:13] [#]} Rh1 {[%emt 0:00:19] Hoping for ...Rb8. The board is on fire. Black is more active.} 29. h3 $2 {[%emt 0:00:56]} (29. Qxb7 $17 {only move.} Rxh2 30. Qc6) 29... Qf7 $2 {[%emt 0:00:52]} ({Don't blunder} 29... Qd7 $2 30. Rd4 Qc6 31. Rd6 Bxd6 32. Qxe6+ Kh8 33. cxd6 Qxg2+ 34. Kd3 Qf1+ 35. Kd4 $19) ({Weaker is} 29... Qh4 30. Qxe6+ Kh8 31. Rd4 (31. Bf2 $2 Qh5+ 32. Ke3 Rhd1 $19) 31... Qe1+ 32. Kd3 $16) (29... g5 $19 {And now ...h6 would win.} 30. Bf2 Qe8) 30. Rb4 $2 {[%emt 0:00:53][%mdl 8192]} (30. Qxb7 $11 Rb8 31. Qxa6 Rxb2+ 32. Kd3) 30... Qh5+ {[%emt 0:00:52] Black mates.} 31. g4 {[%emt 0:00:48]} Qxh3 {[%emt 0:04:19][%csl Gh1][%cal Rh3f1]} 32. Qxe6+ {[%emt 0:00:06]} Kh8 {[%emt 0:00:10][%csl Gh1][%cal Rh3f1]} 33. Rd4 {[%emt 0:00:02]} Qf1+ {[%emt 0:00:46] Black used his chance.   Weighted Error Value: White=0.54/Black=0.39} ({Don't do} 33... Bxa5 34. Rxd8+ {[%mdl 64] Remove Defender, Back Rank} Bxd8 35. Qe8#) 0-1

[Event "Turkish Youth Championships 2023"]
[Site "Samsun"]
[Date "2023.05.22"]
[Round "5.3"]
[White "Kavri, Yusuf Eren"]
[Black "Gungor, Cihan Akif"]
[Result "1-0"]
[WhiteElo "2029"]
[BlackElo "1771"]
[Annotator "RC"]
[PlyCount "241"]
[EventDate "2023.05.19"]
[EventType "swiss"]
[EventCountry "TUR"]
[TimeControl "5400+30"]
[BlackClock "0:07:10"]

1. d4 {[%emt 0:01:00]} d5 {[%emt 0:01:00]} 2. c4 {[%emt 0:00:00]} e6 {[%emt 0:00:00]} 3. Nc3 {[%emt 0:00:00]} a6 {[%emt 0:00:00]} 4. cxd5 {[%emt 0:00:30]} exd5 {[%emt 0:00:00]} 5. Nf3 {[%emt 0:00:30]} Nf6 {[%emt 0:00:00]} 6. Bg5 {[%emt 0:00:30]} Be6 {[%emt 0:00:30]} 7. e3 {[%emt 0:00:30]} Nbd7 {[%emt 0:00:30]} 8. Bd3 {[%emt 0:00:30]} Bd6 {[%emt 0:00:30]} 9. O-O {[%emt 0:00:30]} c6 {[%emt 0:00:30]} 10. Qc2 {[%emt 0:00:30]} Qc7 {[%emt 0:00:30]} 11. Rac1 {[%emt 0:00:30]} O-O {[%emt 0:00:30]} 12. a3 {[%emt 0:00:30]} Rfe8 {[%emt 0:00:30]} 13. Ne2 {[%emt 0:00:30]} Bg4 {[%emt 0:06:30]} 14. h3 {[%emt 0:08:30]} Bh5 {[%emt 0:01:30]} 15. b4 {[%emt 0:05:30]} Ne4 {[%emt 0:04:30]} 16. Bf4 {[%emt 0:01:30]} Bg6 {[%emt 0:07:30]} 17. a4 {[%emt 0:07:30]} Rac8 {[%emt 0:01:30]} 18. Qa2 {[%emt 0:20:30]} Nb6 {[%emt 0:28:30]} 19. b5 {[%emt 0:05:30]} a5 {[%emt 0:00:30]} 20. bxc6 {[%emt 0:01:30]} bxc6 {[%emt 0:00:00]} 21. Ba6 {[%emt 0:00:30]} Qe7 {[%emt 0:05:00]} 22. Bxc8 {[%emt 0:01:30]} Rxc8 {[%emt 0:00:00]} 23. Bxd6 {[%emt 0:09:30]} Nxd6 {[%emt 0:01:00]} 24. Ne5 {[%emt 0:00:30]} Ndc4 {[%emt 0:00:30]} 25. Nxg6 {[%emt 0:04:30]} hxg6 {[%emt 0:00:00]} 26. Rb1 {[%emt 0:00:30]} Rd8 {[%emt 0:02:00]} 27. Rb3 {[%emt 0:00:30]} Qc7 {[%emt 0:01:30]} 28. Nf4 {[%emt 0:02:30]} g5 {[%emt 0:00:30]} 29. Nd3 {[%emt 0:02:30]} Rd6 {[%emt 0:00:30]} 30. Ne5 {[%emt 0:02:30]} Nxe5 {[%emt 0:00:30]} 31. dxe5 {[%emt 0:00:30]} Re6 {[%emt 0:00:00]} 32. Qb1 {[%emt 0:00:30]} c5 {[%emt 0:00:00]} 33. f4 {[%emt 0:01:30]} gxf4 {[%emt 0:00:30]} 34. exf4 {[%emt 0:00:30]} c4 {[%emt 0:03:30]} 35. Rb5 {[%emt 0:00:30]} c3 {[%emt 0:01:30]} 36. Qd3 {[%emt 0:01:30]} Rc6 {[%emt 0:01:30]} 37. Rc1 {[%emt 0:02:30]} Rc4 {[%emt 0:09:30]} 38. f5 {[%emt 0:02:59]} Nd7 {[%emt 0:01:30]} 39. Qxd5 {[%emt 0:02:39]} c2 {[%emt 0:00:30]} 40. Rb7 {[%emt 0:02:04]} Qxe5 {[%emt 0:02:30]} 41. Qxe5 {[%emt 0:00:53]} Nxe5 {[%emt 0:00:00]} 42. Rb2 {[%emt 0:00:26]} Rxa4 {[%emt 0:00:00]} 43. Rcxc2 {[%emt 0:00:10]} Rf4 {[%emt 0:00:30]} 44. Ra2 {[%emt 0:02:51]} Rxf5 {[%emt 0:00:30]} 45. Kh1 {[%emt 0:01:18]} Nd3 {[%emt 0:04:30]} 46. Rc8+ {[%emt 0:00:51]} Kh7 {[%emt 0:00:30]} 47. Ra8 {[%emt 0:00:00]} g6 {[%emt 0:00:30]} 48. R8xa5 {[%emt 0:00:48]} Rf1+ {[%emt 0:00:30]} 49. Kh2 {[%emt 0:00:30]} Kg7 {[%emt 0:00:00]} 50. R5a3 {[%emt 0:00:59]} Ne5 {[%emt 0:00:00]} 51. Re2 {[%emt 0:00:00]} Nc6 {[%emt 0:00:30]} 52. Rd3 {[%emt 0:00:21]} Rf5 {[%emt 0:00:30]} 53. Kg3 {[%emt 0:01:26]} Rg5+ {[%emt 0:00:30]} 54. Kh2 {[%emt 0:00:56]} Rc5 {[%emt 0:00:30]} 55. Rdd2 {[%emt 0:00:36]} Rb5 {[%emt 0:00:30]} 56. Rb2 {[%emt 0:00:21]} Rd5 {[%emt 0:00:30]} 57. Rb3 {[%emt 0:01:25]} Rc5 {[%emt 0:00:30]} 58. Rf2 {[%emt 0:00:15]} Rd5 {[%emt 0:00:30]} 59. Rb7 {[%emt 0:00:56]} Ne5 {[%emt 0:00:30]} 60. Rfb2 {[%emt 0:00:13]} Rd3 {[%emt 0:00:30]} 61. Re7 {[%emt 0:00:30]} Re3 {[%emt 0:00:30]} 62. Rc7 {[%emt 0:00:30]} Kg8 {[%emt 0:00:30]} 63. Ra2 {[%emt 0:00:30]} Kg7 {[%emt 0:00:30]} 64. Kg1 {[%emt 0:00:30]} Nd3 {[%emt 0:00:30]} 65. Raa7 {[%emt 0:01:19]} Ne5 {[%emt 0:00:30]} 66. Kf2 {[%emt 0:00:30]} Rb3 {[%emt 0:00:30]} 67. Re7 {[%emt 0:00:44]} Kf6 {[%emt 0:00:30]} 68. Re8 {[%emt 0:02:45]} Rb2+ {[%emt 0:01:31]} 69. Kg3 {[%emt 0:00:48]} Rb3+ {[%emt 0:00:29]} 70. Kh2 {[%emt 0:00:39]} Nc4 {[%emt 0:00:30]} 71. Ra6+ {[%emt 0:00:52]} Kg7 {[%emt 0:00:30]} 72. h4 {[%emt 0:00:16]} Ne3 {[%emt 0:00:30]} 73. Ra4 {[%emt 0:00:41]} Nf1+ {[%emt 0:00:30]} 74. Kg1 {[%emt 0:00:30]} Ng3 {[%emt 0:00:36]} 75. Kf2 {[%emt 0:01:13]} Nh1+ {[%emt 0:00:30]} 76. Kg1 {[%emt 0:00:30]} Ng3 {[%emt 0:00:30]} 77. Re1 {[%emt 0:00:30]} Rd3 {[%emt 0:00:30]} 78. Ra7 {[%emt 0:00:46]} Nf5 {[%emt 0:01:08]} 79. Rf1 {[%emt 0:00:26]} Rd4 {[%emt 0:01:02]} 80. h5 {[%emt 0:00:25]} Kh6 {[%emt 0:00:49]} 81. hxg6 {[%emt 0:00:48]} fxg6 {[%emt 0:00:37]} 82. Ra6 {[%emt 0:00:07]} Kg5 {[%emt 0:00:00]} 83. Rb1 {[%emt 0:00:16]} Rg4 {[%emt 0:01:17]} 84. Rb5 {[%emt 0:00:25]} Kh5 {[%emt 0:01:06]} 85. Rba5 {[%emt 0:01:07]} Kg5 {[%emt 0:00:30]} 86. Ra4 {[%emt 0:00:30]} Rg3 {[%emt 0:00:30]} 87. Ra3 {[%emt 0:00:30]} Rg4 {[%emt 0:00:30]} 88. R6a4 {[%emt 0:00:30]} Nd4 {[%emt 0:00:55]} 89. g3 {[%emt 0:00:27]} Re4 {[%emt 0:01:31]} 90. Kg2 {[%emt 0:00:43]} Kf5 {[%emt 0:01:01]} 91. Rd3 {[%emt 0:00:30]} Ke5 {[%emt 0:00:30]} 92. Ra5+ {[%emt 0:00:00]} Ke6 {[%emt 0:00:00]} 93. Kh3 {[%emt 0:01:14]} Kf6 {[%emt 0:01:05]} 94. Rd1 {[%emt 0:00:04]} Nf5 {[%emt 0:00:35]} 95. Ra3 {[%emt 0:00:36]} Kg5 {[%emt 0:00:19]} 96. Rb1 {[%emt 0:00:24]} Rc4 {[%emt 0:00:25]} 97. Rb6 {[%emt 0:00:27]} Kh5 {[%emt 0:00:40]} 98. Rb8 {[%emt 0:00:55]} Kg5 {[%emt 0:00:32]} 99. Rba8 {[%emt 0:00:40]} Rc7 {[%emt 0:03:38]} 100. R8a6 {[%emt 0:00:24]} Rb7 {[%emt 0:01:19]} 101. R3a4 {[%emt 0:00:35]} Rh7+ {[%emt 0:00:22]} 102. Kg2 {[%emt 0:00:01]} Rb7 {[%emt 0:00:18]} 103. R6a5 {[%emt 0:00:31]} Rb3 {[%emt 0:01:11]} 104. Kh2 {[%emt 0:00:08]} Kh6 {[%emt 0:00:17]} 105. Rg4 {[%emt 0:00:42]} Kh5 {[%emt 0:02:51]} 106. Kh3 {[%emt 0:00:01]} Rb1 {[%emt 0:00:03]} 107. Rh4+ {[%emt 0:00:31]} Kg5 {[%emt 0:00:01]} 108. Re4 {[%emt 0:00:36]} Rb3 {[%emt 0:00:33]} 109. Rg4+ {[%emt 0:00:02]} Kh5 {[%emt 0:00:43]} 110. Ra8 {[%emt 0:00:29]} Nh6 {[%emt 0:01:01]} 111. Rh8 {[%emt 0:01:31]} g5 {[%emt 0:00:22]} 112. Ra4 {[%emt 0:00:26]} g4+ {[%emt 0:00:12]} 113. Kg2 {[%emt 0:00:41]} Rb6 {[%emt 0:03:02]} 114. Kf2 {[%emt 0:00:01]} Re6 {[%emt 0:00:11]} 115. Rha8 {[%emt 0:00:57]} Nf5 {[%emt 0:00:35]} 116. Rg8 {[%emt 0:00:36]} Ne3 {[%emt 0:00:59]} 117. Ra1 {[%emt 0:01:09]} Rf6+ {[%emt 0:01:23]} 118. Kxe3 {[%emt 0:00:32]} Rf3+ {[%emt 0:00:06]} 119. Ke2 {[%emt 0:00:05]} Rxg3 {[%emt 0:00:03]} 120. Rh1+ {[%emt 0:00:03]} Rh3 {[%emt 0:00:05]} 121. Rh8+ {[%emt 0:00:05]} 1-0

[Event "Turkish Youth Championships 2023"]
[Site "Samsun"]
[Date "2023.05.22"]
[Round "5.4"]
[White "Akbas, Umut Ata"]
[Black "Aydogdu, Cagatay"]
[Result "1-0"]
[WhiteElo "2417"]
[BlackElo "1856"]
[Annotator "TA"]
[PlyCount "67"]
[EventDate "2023.05.19"]
[EventType "swiss"]
[EventCountry "TUR"]
[TimeControl "5400+30"]

{[%evp 10,67,78,55,78,81,75,75,117,117,117,115,112,105,99,89,93,81,79,70,82,80,88,62,66,26,42,21,32,8,3,0,14,0,0,1,106,126,113,107,114,111,89,0,248,225,281,112,433,416,1083,1070,1691,1679,3006,2981,29989,29990,29990,29991]} 1. Nf3 {[%emt 0:01:00]} g6 {[%emt 0:01:00]} 2. e4 {[%emt 0:00:00]} c6 {[%emt 0:00:30]} 3. d4 {[%emt 0:00:00]} d5 {[%emt 0:00:00]} 4. e5 {[%emt 0:00:30]} Bg4 {[%emt 0:00:00]} 5. Nbd2 {[%emt 0:01:30]} Bg7 {[%emt 0:02:30]} 6. Bd3 {[%emt 0:00:30]} f6 {[%emt 0:03:30] B06: Modern Defence.} 7. h3 {[%emt 0:02:30]} Bxf3 {[%emt 0:00:00]} 8. Nxf3 {[%emt 0:00:30]} Nd7 {[%emt 0:00:00][%cal Rf6e5] White is better.} 9. exf6 {[%emt 0:02:30] [#]} exf6 $146 {[%emt 0:27:30]} ({Predecessor:} 9... Ngxf6 10. O-O O-O 11. Ng5 Qb6 12. Ne6 Rf7 13. c3 c5 14. Qe2 cxd4 15. cxd4 Rc8 {1-0 Demchenko,A (2654)-Coto Mederos,M (2348) Titled Tuesday intern op 22 Mar Early blitz 2022 (4)}) 10. O-O {[%emt 0:01:30]} Ne7 {[%emt 0:00:00]} 11. Re1 {[%emt 0:02:30]} O-O {[%emt 0:01:00]} 12. Bf4 {[%emt 0:09:30]} Re8 {[%emt 0:11:30]} 13. Re3 {[%emt 0:04:30]} Nf8 {[%emt 0:10:30]} 14. Qe2 {[%emt 0:15:30] Threatens to win with Re1.} Qd7 {[%emt 0:00:30] Black is weak on the dark squares} 15. Re1 {[%emt 0:12:30][%cal Re3e7]} Kf7 {[%emt 0:00:30]} 16. Nd2 {[%emt 0:00:00]} Rad8 {[%emt 0:11:30]} 17. Nb3 {[%emt 0:05:00] Strongly threatening Nc5.} b6 {[%emt 0:00:30] Dodges Nc5} 18. a4 {[%emt 0:01:30][%cal Ba2a4,Ba4a5][%mdl 32]} (18. h4 {simplifies} Nc8 19. c4 Rxe3 20. Bxe3 Ne7 21. h5) 18... Nc8 $1 {[%emt 0:08:43]} 19. a5 {[%emt 0:01:30]} (19. c4 {simplifies} Rxe3 20. Bxe3 Ne7 21. Nd2) 19... Ne6 {[%emt 0:02:55]} 20. Qg4 {[%emt 0:02:30]} Re7 {[%emt 0:04:29]} 21. Bh2 {[%emt 0:14:30]} Rde8 {[%emt 0:04:51]} 22. c3 {[%emt 0:02:29][%cal Bc2c3,Bc3c4][%mdl 32]} c5 {[%emt 0:03:50]} (22... Nd6 $11) 23. dxc5 $1 $16 {[%emt 0:02:05]} (23. axb6 $6 c4 24. b7 (24. bxa7 Nxa7 25. Bc2 cxb3 $17) 24... Qxb7 25. Rxe6 (25. Na5 $2 Qb5 $19) 25... Qxb3 26. Rxe7+ Rxe7 27. Rxe7+ Nxe7 $11) 23... bxc5 {[%emt 0:00:20]} 24. c4 $1 {[%emt 0:00:23] White has more active pieces.} d4 {[%emt 0:00:50] [#]} 25. R3e2 {[%emt 0:00:44]} Qb7 {[%emt 0:01:01] Repels Qf3} 26. Nc1 {[%emt 0:06:19]} (26. Rxe6 Qxb3 27. Rxe7+ Rxe7 28. Rxe7+ Nxe7 $11) (26. Nd2 $16) 26... Qa6 $2 {[%emt 0:00:20] [#]} (26... f5 $11 27. Qh4 (27. Bxf5 gxf5 28. Qxf5+ Kg8 $17) 27... h6) 27. b4 $1 $18 {[%emt 0:02:40][%mdl 512] Hoping for Nb3.} cxb4 {[%emt 0:00:49]} (27... Bf8 28. Bg3) 28. Nb3 {[%emt 0:00:04]} (28. c5 $18 {is more deadly.} Qc6 29. Bc4) 28... f5 $2 {[%emt 0:03:39][%mdl 8192] [#] A mistake that costs the game.} (28... Nd8 $16 {is more resistant.}) 29. Qf3 $1 {[%emt 0:00:09] And now c5 would win.} (29. Bxf5 $2 gxf5 30. Qxf5+ Kg8 $19) 29... Ng5 {[%emt 0:01:52]} (29... Qb7 $142 30. Qxb7 Rxb7 31. Rxe6 {[%mdl 64] Remove Defender} Rxe6 32. Rxe6 Kxe6) 30. Qd5+ {[%emt 0:00:08]} Kf8 {[%emt 0:00:10]} 31. Nc5 {[%emt 0:00:48] White threatens Nd7+ and mate.} ({Less strong is} 31. Nxd4 Qf6 32. Nb3 (32. Rxe7 Nxe7 33. Rxe7 Rxe7 $11) 32... Rxe2 33. Rxe2 Rxe2 34. Bxe2 Qb2 $14) 31... Nb6 {[%emt 0:00:40]} 32. axb6 {[%emt 0:00:40] White wants to mate with Nd7+.} Qc8 {[%emt 0:00:27] Repels Nd7+} 33. Rxe7 {[%emt 0:00:49]} Rxe7 {[%emt 0:00:30]} 34. Bd6 {[%emt 0:00:00][%mdl 64] Pin. An entertaining game by Akbas.   Weighted Error Value: White=0.15 (very precise) /Black=0.72} 1-0